[Event "*** Titled Tuesday Blitz"]
[Site "Chess.com"]
[Date "2019.05.07"]
[Round "2"]
[White "evgenyermolaev"]
[Black "HansCoolNiemann"]
[Result "0-1"]
[WhiteElo "2501"]
[BlackElo "2498"]
[TimeControl "180+2"]
[EndTime "13:25:10 PDT"]
[Termination "HansCoolNiemann won by resignation"]

1. e4 {[%clk 0:03:01.8]} 1... e6 {[%clk 0:02:32.9]} 2. Nc3 {[%clk 0:03:00.5]}
2... d5 {[%clk 0:02:33.5]} 3. d4 {[%clk 0:03:02]} 3... Nf6 {[%clk 0:02:34.1]} 4.
e5 {[%clk 0:03:03.3]} 4... Nfd7 {[%clk 0:02:35.4]} 5. Nf3 {[%clk 0:03:04.6]}
5... c5 {[%clk 0:02:36.6]} 6. dxc5 {[%clk 0:03:06.2]} 6... Nc6 {[%clk
0:02:35.5]} 7. Bf4 {[%clk 0:03:07.5]} 7... Bxc5 {[%clk 0:02:36.2]} 8. Bd3 {[%clk
0:03:08.9]} 8... h6 {[%clk 0:02:31]} 9. Qe2 {[%clk 0:03:03.6]} 9... a6 {[%clk
0:02:31.3]} 10. O-O-O {[%clk 0:03:01.6]} 10... Qa5 {[%clk 0:02:31.6]} 11. Kb1
{[%clk 0:02:58.4]} 11... b5 {[%clk 0:02:32.5]} 12. Rhe1 {[%clk 0:02:54.5]} 12...
Nb6 {[%clk 0:02:31.5]} 13. Rc1 {[%clk 0:02:18.4]} 13... Bb7 {[%clk 0:02:19.6]}
14. Be3 {[%clk 0:02:17.1]} 14... b4 {[%clk 0:02:13.8]} 15. Nd1 {[%clk
0:02:11.3]} 15... d4 {[%clk 0:02:12]} 16. Bd2 {[%clk 0:02:10.5]} 16... Nd5
{[%clk 0:02:12.7]} 17. Be4 {[%clk 0:01:56.3]} 17... Nc3+ {[%clk 0:02:08.3]} 18.
bxc3 {[%clk 0:01:48.1]} 18... bxc3 {[%clk 0:02:06.8]} 19. Bf4 {[%clk 0:01:45.1]}
19... Nb4 {[%clk 0:02:03.8]} 20. Qc4 {[%clk 0:01:45.4]} 20... Bd5 {[%clk
0:02:01.2]} 21. Bxd5 {[%clk 0:01:39.7]} 21... exd5 {[%clk 0:02:03.1]} 22. Qb3
{[%clk 0:01:39.5]} 22... O-O {[%clk 0:01:51.2]} 23. e6 {[%clk 0:01:40.3]} 23...
fxe6 {[%clk 0:01:49.2]} 24. Be5 {[%clk 0:01:40.1]} 24... Nc6 {[%clk 0:01:44.5]}
25. Bg3 {[%clk 0:01:33.1]} 25... Rab8 {[%clk 0:01:08.2]} 26. Bxb8 {[%clk
0:01:29.7]} 26... Rxb8 {[%clk 0:01:10.1]} 27. Rxe6 {[%clk 0:01:26]} 27... Rxb3+
{[%clk 0:01:06.4]} 28. cxb3 {[%clk 0:01:11.9]} 28... Nb4 {[%clk 0:01:03.5]} 29.
a4 {[%clk 0:01:11.3]} 29... c2+ {[%clk 0:01:01.4]} 30. Rxc2 {[%clk 0:01:10.9]}
30... Nxc2 {[%clk 0:01:03.3]} 31. Kxc2 {[%clk 0:01:12.8]} 31... Qb4 {[%clk
0:00:56.2]} 32. Ne1 {[%clk 0:01:04.5]} 32... Qb7 {[%clk 0:00:41.8]} 33. Nd3
{[%clk 0:01:03]} 33... Qc8 {[%clk 0:00:42.9]} 34. Re2 {[%clk 0:00:58.8]} 34...
Bb4+ {[%clk 0:00:43.4]} 35. Kb2 {[%clk 0:00:56.8]} 35... Bc3+ {[%clk 0:00:44.8]}
36. Kc2 {[%clk 0:00:53.8]} 36... Ba5+ {[%clk 0:00:45.9]} 37. Kb2 {[%clk
0:00:54.8]} 37... Qf5 {[%clk 0:00:47.4]} 38. Kc2 {[%clk 0:00:52.9]} 38... Qc8+
{[%clk 0:00:42.6]} 39. Kb1 {[%clk 0:00:46.3]} 39... Kh7 {[%clk 0:00:32.6]} 40.
Rc2 {[%clk 0:00:43.4]} 40... Qf5 {[%clk 0:00:32.9]} 41. N1b2 {[%clk 0:00:42.8]}
41... Bc3 {[%clk 0:00:33.6]} 42. Kc1 {[%clk 0:00:39.7]} 42... Qg5+ {[%clk
0:00:33.1]} 43. f4 {[%clk 0:00:39.1]} 43... Qh4 {[%clk 0:00:33.7]} 44. g3 {[%clk
0:00:40.2]} 44... Qh3 {[%clk 0:00:34.6]} 45. Rf2 {[%clk 0:00:34.5]} 45... Qe6
{[%clk 0:00:35.3]} 46. Ne5 {[%clk 0:00:31.6]} 46... Qb6 {[%clk 0:00:31.2]} 47.
Kc2 {[%clk 0:00:29.4]} 47... Ba5 {[%clk 0:00:31.6]} 48. Nbd3 {[%clk 0:00:23]}
48... Qc7+ {[%clk 0:00:32.2]} 49. Kb2 {[%clk 0:00:22]} 49... Qc3+ {[%clk
0:00:33.6]} 50. Ka2 {[%clk 0:00:23.4]} 50... Bc7 {[%clk 0:00:34.1]} 51. Rf3
{[%clk 0:00:16.6]} 51... Qc2+ {[%clk 0:00:33.1]} 52. Ka3 {[%clk 0:00:06.4]}
52... a5 {[%clk 0:00:33.9]} 0-1

[Event "*** Titled Tuesday Blitz"]
[Site "Chess.com"]
[Date "2019.05.07"]
[Round "2"]
[White "StephenDedalus83"]
[Black "GCamachoMartinez"]
[Result "1/2-1/2"]
[WhiteElo "2795"]
[BlackElo "2361"]
[TimeControl "180+2"]
[EndTime "13:25:12 PDT"]
[Termination "Game drawn by agreement"]

1. e4 {[%clk 0:03:01.9]} 1... e5 {[%clk 0:03:00.3]} 2. Nf3 {[%clk 0:03:02.6]}
2... Nf6 {[%clk 0:03:01.1]} 3. Nxe5 {[%clk 0:03:02.6]} 3... d6 {[%clk
0:03:02.1]} 4. Nf3 {[%clk 0:03:03.7]} 4... Nxe4 {[%clk 0:03:03.5]} 5. d4 {[%clk
0:03:04.9]} 5... d5 {[%clk 0:03:03.9]} 6. Bd3 {[%clk 0:03:05.9]} 6... Be7 {[%clk
0:03:05.4]} 7. O-O {[%clk 0:03:07.3]} 7... Nc6 {[%clk 0:03:06.8]} 8. Re1 {[%clk
0:03:08.1]} 8... Bg4 {[%clk 0:02:57.6]} 9. c4 {[%clk 0:03:08.3]} 9... Nf6 {[%clk
0:02:43.8]} 10. Nc3 {[%clk 0:03:07.9]} 10... O-O {[%clk 0:02:16]} 11. cxd5
{[%clk 0:03:07.2]} 11... Nb4 {[%clk 0:02:12.9]} 12. Bc4 {[%clk 0:02:35.8]} 12...
Bxf3 {[%clk 0:02:13.1]} 13. gxf3 {[%clk 0:02:33.1]} 13... Re8 {[%clk 0:01:36.1]}
14. Qb3 {[%clk 0:02:33.5]} 14... a6 {[%clk 0:01:36.3]} 15. d6 {[%clk 0:02:29.2]}
15... Qxd6 {[%clk 0:01:31.7]} 16. Bxf7+ {[%clk 0:02:29.9]} 16... Kf8 {[%clk
0:01:31.2]} 17. Bxe8 {[%clk 0:02:29.8]} 17... Rxe8 {[%clk 0:01:33.1]} 18. Be3
{[%clk 0:02:27.2]} 18... b5 {[%clk 0:01:10.6]} 19. Ne4 {[%clk 0:02:25.1]} 19...
Nxe4 {[%clk 0:01:09.8]} 20. fxe4 {[%clk 0:02:26.1]} 20... Qg6+ {[%clk
0:01:11.2]} 21. Kf1 {[%clk 0:02:06.5]} 21... Qxe4 {[%clk 0:01:12.8]} 22. Red1
{[%clk 0:01:50.6]} 22... Nc2 {[%clk 0:00:59.5]} 23. Rac1 {[%clk 0:01:50.3]}
23... Nxe3+ {[%clk 0:00:58.7]} 24. Qxe3 {[%clk 0:01:50.7]} 24... Qh1+ {[%clk
0:00:56.5]} 25. Ke2 {[%clk 0:01:51.4]} 25... Qxh2 {[%clk 0:00:56.2]} 26. Qf3+
{[%clk 0:01:43.6]} 26... Bf6+ {[%clk 0:00:56.9]} 27. Kd3 {[%clk 0:01:44.2]}
27... Qd6 {[%clk 0:00:56]} 28. Kc2 {[%clk 0:01:43.9]} 28... c5 {[%clk
0:00:54.6]} 29. dxc5 {[%clk 0:01:42]} 29... Qe5 {[%clk 0:00:55.8]} 30. Qc3
{[%clk 0:01:22.8]} 30... Qf5+ {[%clk 0:00:51.3]} 31. Qd3 {[%clk 0:01:23.4]}
31... Re2+ {[%clk 0:00:52]} 32. Rd2 {[%clk 0:01:23.8]} 32... Qxd3+ {[%clk
0:00:50.3]} 33. Kxd3 {[%clk 0:01:24.2]} 33... Rxd2+ {[%clk 0:00:51.8]} 34. Kxd2
{[%clk 0:01:25.3]} 34... Bg5+ {[%clk 0:00:53.3]} 35. Kc2 {[%clk 0:01:14.4]}
35... Bxc1 {[%clk 0:00:54.5]} 36. Kxc1 {[%clk 0:01:15.3]} 36... h5 {[%clk
0:00:51.6]} 37. Kd2 {[%clk 0:01:12.2]} 37... b4 {[%clk 0:00:46.6]} 38. Ke3
{[%clk 0:01:06.6]} 38... Ke7 {[%clk 0:00:41.2]} 39. Kf4 {[%clk 0:01:07.2]} 39...
Ke6 {[%clk 0:00:41]} 40. Kg5 {[%clk 0:01:07.8]} 40... g6 {[%clk 0:00:42.1]} 41.
f4 {[%clk 0:01:08.6]} 41... Kd5 {[%clk 0:00:42.8]} 42. Kxg6 {[%clk 0:00:58.5]}
42... h4 {[%clk 0:00:43.8]} 43. f5 {[%clk 0:00:59.5]} 43... h3 {[%clk
0:00:45.7]} 44. f6 {[%clk 0:01:00.7]} 44... h2 {[%clk 0:00:46.8]} 45. f7 {[%clk
0:01:02.2]} 45... h1=Q {[%clk 0:00:48.3]} 46. f8=Q {[%clk 0:01:02.8]} 46... Qg2+
{[%clk 0:00:48.5]} 47. Kh7 {[%clk 0:01:03.2]} 47... Qh3+ {[%clk 0:00:49.4]} 48.
Kg6 {[%clk 0:00:59.6]} 48... Qg4+ {[%clk 0:00:50.2]} 49. Kh6 {[%clk 0:00:59.8]}
49... Qh4+ {[%clk 0:00:48.9]} 50. Kg6 {[%clk 0:01:00.7]} 50... Qg3+ {[%clk
0:00:48.5]} 51. Kh6 {[%clk 0:01:00.4]} 51... Qh2+ {[%clk 0:00:49.2]} 52. Kg6
{[%clk 0:01:01.3]} 52... Qg1+ {[%clk 0:00:50.1]} 53. Kh6 {[%clk 0:01:02.1]}
53... Qe3+ {[%clk 0:00:49.5]} 54. Kg6 {[%clk 0:01:02.4]} 54... Qxc5 {[%clk
0:00:48.3]} 55. Qf5+ {[%clk 0:01:00.5]} 55... Kc6 {[%clk 0:00:46.5]} 56. Qc8+
{[%clk 0:00:43.3]} 56... Kb6 {[%clk 0:00:46.1]} 57. Qb8+ {[%clk 0:00:41.5]}
57... Ka5 {[%clk 0:00:45.4]} 58. Qd8+ {[%clk 0:00:41.5]} 58... Qb6+ {[%clk
0:00:45.9]} 59. Qxb6+ {[%clk 0:00:42.2]} 59... Kxb6 {[%clk 0:00:47.8]} 60. Kf5
{[%clk 0:00:43.6]} 60... Kc5 {[%clk 0:00:49.3]} 61. Ke4 {[%clk 0:00:40.9]} 61...
Kc4 {[%clk 0:00:50.6]} 62. Ke3 {[%clk 0:00:41.7]} 62... a5 {[%clk 0:00:49.8]}
63. Ke4 {[%clk 0:00:42.6]} 63... a4 {[%clk 0:00:49.5]} 64. Ke3 {[%clk
0:00:43.6]} 64... a3 {[%clk 0:00:50.8]} 65. bxa3 {[%clk 0:00:44.1]} 65... bxa3
{[%clk 0:00:51.9]} 66. Kd2 {[%clk 0:00:45.5]} 66... Kd4 {[%clk 0:00:52.7]} 67.
Kc2 {[%clk 0:00:46.5]} 67... Kc4 {[%clk 0:00:54]} 68. Kd2 {[%clk 0:00:47.7]}
68... Kd4 {[%clk 0:00:53.1]} 1/2-1/2

[Event "*** Titled Tuesday Blitz"]
[Site "Chess.com"]
[Date "2019.05.07"]
[Round "2"]
[White "GMJimKnopf"]
[Black "kacprekt"]
[Result "0-1"]
[WhiteElo "2442"]
[BlackElo "2312"]
[TimeControl "180+2"]
[EndTime "13:25:13 PDT"]
[Termination "kacprekt won on time"]

1. e4 {[%clk 0:03:01.9]} 1... c6 {[%clk 0:03:00.5]} 2. d4 {[%clk 0:03:02.2]}
2... d5 {[%clk 0:03:02.1]} 3. exd5 {[%clk 0:03:04.1]} 3... cxd5 {[%clk
0:03:02.9]} 4. c4 {[%clk 0:03:06]} 4... Nf6 {[%clk 0:03:03.6]} 5. Nc3 {[%clk
0:03:07.6]} 5... Nc6 {[%clk 0:03:04.8]} 6. Nf3 {[%clk 0:03:09]} 6... Bg4 {[%clk
0:03:04.9]} 7. cxd5 {[%clk 0:03:09.3]} 7... Nxd5 {[%clk 0:03:03.7]} 8. Qb3
{[%clk 0:03:10.8]} 8... Bxf3 {[%clk 0:03:02.4]} 9. gxf3 {[%clk 0:03:12.7]} 9...
e6 {[%clk 0:03:03.7]} 10. Qxb7 {[%clk 0:03:09.4]} 10... Nxd4 {[%clk 0:03:05]}
11. Bb5+ {[%clk 0:03:03.5]} 11... Nxb5 {[%clk 0:03:05.9]} 12. Qc6+ {[%clk
0:02:57.6]} 12... Ke7 {[%clk 0:03:07.1]} 13. Qxb5 {[%clk 0:02:55.1]} 13... Qd7
{[%clk 0:03:07.1]} 14. Nxd5+ {[%clk 0:02:55.1]} 14... Qxd5 {[%clk 0:03:08.6]}
15. Qxd5 {[%clk 0:02:56.4]} 15... exd5 {[%clk 0:03:10.5]} 16. Be3 {[%clk
0:02:20.9]} 16... Ke6 {[%clk 0:03:08.3]} 17. O-O-O {[%clk 0:02:20.3]} 17... Bb4
{[%clk 0:03:09.6]} 18. a3 {[%clk 0:02:18.4]} 18... Rhc8+ {[%clk 0:03:10.7]} 19.
Kb1 {[%clk 0:02:17.5]} 19... Bc5 {[%clk 0:03:12.2]} 20. Rhe1 {[%clk 0:02:02.6]}
20... Bxe3 {[%clk 0:03:00.1]} 21. fxe3 {[%clk 0:02:04.5]} 21... Rc4 {[%clk
0:02:55.5]} 22. Rg1 {[%clk 0:01:50.4]} 22... g6 {[%clk 0:02:51.4]} 23. Rc1
{[%clk 0:00:57.2]} 23... Rac8 {[%clk 0:02:48.1]} 24. Rxc4 {[%clk 0:00:57.6]}
24... Rxc4 {[%clk 0:02:49.1]} 25. Rc1 {[%clk 0:00:59.3]} 25... Rh4 {[%clk
0:02:35.2]} 26. Rc6+ {[%clk 0:00:44.5]} 26... Ke5 {[%clk 0:02:33.4]} 27. Rc7
{[%clk 0:00:42.6]} 27... a5 {[%clk 0:02:24.3]} 28. Rxf7 {[%clk 0:00:42.6]} 28...
Rxh2 {[%clk 0:02:23.8]} 29. Re7+ {[%clk 0:00:43.8]} 29... Kd6 {[%clk 0:02:20.5]}
30. Ra7 {[%clk 0:00:44.7]} 30... Re2 {[%clk 0:02:21.5]} 31. Ra6+ {[%clk
0:00:40.4]} 31... Ke5 {[%clk 0:02:20.7]} 32. Rxa5 {[%clk 0:00:21.5]} 32... Rxe3
{[%clk 0:02:20.5]} 33. Ra7 {[%clk 0:00:21.3]} 33... h5 {[%clk 0:02:17.7]} 34. a4
{[%clk 0:00:17.7]} 34... Rxf3 {[%clk 0:02:06.9]} 35. a5 {[%clk 0:00:18.3]} 35...
Kd4 {[%clk 0:01:55.6]} 36. a6 {[%clk 0:00:18.9]} 36... Kc5 {[%clk 0:01:53.7]}
37. Rg7 {[%clk 0:00:18.4]} 37... Rf6 {[%clk 0:01:49]} 38. a7 {[%clk 0:00:18.1]}
38... Ra6 {[%clk 0:01:50.4]} 39. Rxg6 {[%clk 0:00:18.7]} 39... Rxa7 {[%clk
0:01:51.2]} 40. Rh6 {[%clk 0:00:19.8]} 40... Rg7 {[%clk 0:01:44.2]} 41. Rxh5
{[%clk 0:00:20.4]} 41... Rg2 {[%clk 0:01:42.2]} 42. b4+ {[%clk 0:00:20.8]} 42...
Kc4 {[%clk 0:01:42.2]} 43. b5 {[%clk 0:00:22]} 43... Rg6 {[%clk 0:01:08.5]} 44.
Kc2 {[%clk 0:00:16.8]} 44... Rb6 {[%clk 0:01:08.7]} 45. Rh4+ {[%clk 0:00:12.1]}
45... Kc5 {[%clk 0:01:07.4]} 46. Kd3 {[%clk 0:00:10.2]} 46... Rxb5 {[%clk
0:01:08.4]} 47. Rh8 {[%clk 0:00:09]} 47... Rb3+ {[%clk 0:01:09]} 48. Kd2 {[%clk
0:00:09.4]} 48... Rg3 {[%clk 0:01:10.4]} 49. Rc8+ {[%clk 0:00:09.7]} 49... Kd4
{[%clk 0:01:11.6]} 50. Re8 {[%clk 0:00:09.8]} 50... Rg2+ {[%clk 0:01:12]} 51.
Ke1 {[%clk 0:00:04.7]} 51... Kd3 {[%clk 0:01:08.2]} 52. Rd8 {[%clk 0:00:04.9]}
52... d4 {[%clk 0:01:08.5]} 53. Kf1 {[%clk 0:00:03.9]} 53... Ra2 {[%clk
0:01:06.2]} 54. Rh8 {[%clk 0:00:03.1]} 54... Ra1+ {[%clk 0:01:07.1]} 55. Kf2
{[%clk 0:00:04.6]} 55... Rd1 {[%clk 0:00:56.6]} 56. Rc8 {[%clk 0:00:03.5]} 56...
Kd2 {[%clk 0:00:54]} 57. Rd8 {[%clk 0:00:04.1]} 57... d3 {[%clk 0:00:55.4]} 58.
Rc8 {[%clk 0:00:02.6]} 58... Rc1 {[%clk 0:00:53.2]} 0-1

[Event "*** Titled Tuesday Blitz"]
[Site "Chess.com"]
[Date "2019.05.07"]
[Round "2"]
[White "albi1999"]
[Black "adriangschnitzer"]
[Result "1/2-1/2"]
[WhiteElo "2521"]
[BlackElo "2424"]
[TimeControl "180+2"]
[EndTime "13:25:15 PDT"]
[Termination "Game drawn by repetition"]

1. d4 {[%clk 0:03:01.9]} 1... Nf6 {[%clk 0:02:59]} 2. c4 {[%clk 0:03:02.8]} 2...
c5 {[%clk 0:02:58.7]} 3. d5 {[%clk 0:03:03.7]} 3... b5 {[%clk 0:02:59.1]} 4.
cxb5 {[%clk 0:03:05.6]} 4... a6 {[%clk 0:02:59.6]} 5. bxa6 {[%clk 0:03:07.5]}
5... g6 {[%clk 0:03:01]} 6. Nc3 {[%clk 0:03:08.9]} 6... Bg7 {[%clk 0:03:02]} 7.
e4 {[%clk 0:03:10.5]} 7... O-O {[%clk 0:03:03.2]} 8. Nf3 {[%clk 0:03:12.2]} 8...
Qa5 {[%clk 0:03:03.6]} 9. Bd2 {[%clk 0:03:13.5]} 9... Qb4 {[%clk 0:02:56.4]} 10.
Qc2 {[%clk 0:03:07.2]} 10... Bxa6 {[%clk 0:02:51.8]} 11. Bxa6 {[%clk 0:03:06.5]}
11... Nxa6 {[%clk 0:02:51.8]} 12. O-O {[%clk 0:03:08.4]} 12... Rfb8 {[%clk
0:02:51.3]} 13. Rfb1 {[%clk 0:03:08.7]} 13... d6 {[%clk 0:02:47.7]} 14. h3
{[%clk 0:02:52.3]} 14... Nd7 {[%clk 0:02:46.9]} 15. a4 {[%clk 0:02:49.5]} 15...
Qb3 {[%clk 0:02:44]} 16. Ne1 {[%clk 0:02:38.7]} 16... Bd4 {[%clk 0:02:26.7]} 17.
Nb5 {[%clk 0:02:29.9]} 17... Qxc2 {[%clk 0:02:22.6]} 18. Nxc2 {[%clk 0:02:31.8]}
18... Bg7 {[%clk 0:02:21.6]} 19. Ra3 {[%clk 0:02:29.5]} 19... Ne5 {[%clk
0:02:21.3]} 20. b3 {[%clk 0:02:26.3]} 20... Nb4 {[%clk 0:02:05.1]} 21. Nxb4
{[%clk 0:01:19.8]} 21... cxb4 {[%clk 0:02:05.6]} 22. Raa1 {[%clk 0:01:08.6]}
22... Nd3 {[%clk 0:01:46.5]} 23. Nc7 {[%clk 0:01:08.6]} 23... Ra7 {[%clk
0:01:43.5]} 24. Nb5 {[%clk 0:01:09.6]} 24... Ra5 {[%clk 0:01:39.5]} 25. Na3
{[%clk 0:00:56.7]} 25... Bxa1 {[%clk 0:01:26.9]} 26. Nc4 {[%clk 0:00:57.7]}
26... Rc5 {[%clk 0:01:10.7]} 27. Rxa1 {[%clk 0:00:57.6]} 27... Ne5 {[%clk
0:01:08.8]} 28. Be3 {[%clk 0:00:56.8]} 28... Rc7 {[%clk 0:00:50.9]} 29. Nxe5
{[%clk 0:00:47.7]} 29... dxe5 {[%clk 0:00:52.8]} 30. a5 {[%clk 0:00:49.6]} 30...
Rc3 {[%clk 0:00:52.8]} 31. a6 {[%clk 0:00:36.4]} 31... Rxb3 {[%clk 0:00:52.6]}
32. a7 {[%clk 0:00:37.6]} 32... Ra8 {[%clk 0:00:53.4]} 33. Ra5 {[%clk
0:00:36.9]} 33... Ra3 {[%clk 0:00:25.3]} 34. Rb5 {[%clk 0:00:35.3]} 34... R3xa7
{[%clk 0:00:25.4]} 35. Bxa7 {[%clk 0:00:37.2]} 35... Rxa7 {[%clk 0:00:25.8]} 36.
Rxb4 {[%clk 0:00:37.4]} 36... Kg7 {[%clk 0:00:25.7]} 37. Kh2 {[%clk 0:00:38.1]}
37... f6 {[%clk 0:00:25.7]} 38. Kg3 {[%clk 0:00:39.2]} 38... h5 {[%clk
0:00:26.2]} 39. h4 {[%clk 0:00:40.2]} 39... Kf7 {[%clk 0:00:26.8]} 40. f3 {[%clk
0:00:41.4]} 40... Ra2 {[%clk 0:00:27.4]} 41. Rb7 {[%clk 0:00:42]} 41... Ra6
{[%clk 0:00:28.3]} 42. Rc7 {[%clk 0:00:41.6]} 42... Rb6 {[%clk 0:00:28.8]} 43.
Rd7 {[%clk 0:00:38.5]} 43... Ra6 {[%clk 0:00:27.9]} 44. Rc7 {[%clk 0:00:38.1]}
44... Rb6 {[%clk 0:00:28.8]} 45. Kh3 {[%clk 0:00:38.5]} 45... Ra6 {[%clk
0:00:25.2]} 46. g4 {[%clk 0:00:39.3]} 46... hxg4+ {[%clk 0:00:22.9]} 47. Kxg4
{[%clk 0:00:41.2]} 47... Rb6 {[%clk 0:00:22.4]} 48. h5 {[%clk 0:00:40.6]} 48...
gxh5+ {[%clk 0:00:22.7]} 49. Kxh5 {[%clk 0:00:42.5]} 49... Ra6 {[%clk
0:00:21.3]} 50. Kg4 {[%clk 0:00:43.5]} 50... Rb6 {[%clk 0:00:22.4]} 51. Rc6
{[%clk 0:00:38]} 51... Rb7 {[%clk 0:00:19.9]} 52. d6 {[%clk 0:00:38.8]} 52...
exd6 {[%clk 0:00:18]} 53. Rxd6 {[%clk 0:00:40.7]} 53... Ke7 {[%clk 0:00:19.3]}
54. Ra6 {[%clk 0:00:40.7]} 54... Rb3 {[%clk 0:00:20.3]} 55. Ra7+ {[%clk
0:00:39.7]} 55... Ke6 {[%clk 0:00:21.3]} 56. Ra6+ {[%clk 0:00:40.8]} 56... Ke7
{[%clk 0:00:22.7]} 57. f4 {[%clk 0:00:41.2]} 57... exf4 {[%clk 0:00:23.4]} 58.
Kxf4 {[%clk 0:00:43.1]} 58... Rb4 {[%clk 0:00:23.1]} 59. Ra5 {[%clk 0:00:42.5]}
59... Ke6 {[%clk 0:00:23.8]} 60. Ra6+ {[%clk 0:00:43.5]} 60... Ke7 {[%clk
0:00:25.1]} 61. Ra7+ {[%clk 0:00:43.4]} 61... Ke6 {[%clk 0:00:26.3]} 62. Ra6+
{[%clk 0:00:44.9]} 62... Ke7 {[%clk 0:00:27.7]} 63. Ra7+ {[%clk 0:00:46.5]}
63... Ke6 {[%clk 0:00:29.1]} 64. Ra6+ {[%clk 0:00:47.6]} 1/2-1/2

[Event "*** Titled Tuesday Blitz"]
[Site "Chess.com"]
[Date "2019.05.07"]
[Round "2"]
[White "GameOverBro"]
[Black "sergeikim"]
[Result "1-0"]
[WhiteElo "2429"]
[BlackElo "2484"]
[TimeControl "180+2"]
[EndTime "13:25:32 PDT"]
[Termination "GameOverBro won by resignation"]

1. e4 {[%clk 0:03:01.9]} 1... e5 {[%clk 0:03:00.7]} 2. Nf3 {[%clk 0:03:01.2]}
2... Nc6 {[%clk 0:03:01.7]} 3. Bb5 {[%clk 0:02:58.3]} 3... a6 {[%clk 0:03:02.6]}
4. Ba4 {[%clk 0:02:59]} 4... Nf6 {[%clk 0:03:03.6]} 5. d4 {[%clk 0:02:59.8]}
5... exd4 {[%clk 0:03:03.8]} 6. O-O {[%clk 0:03:00.8]} 6... Be7 {[%clk
0:03:04.7]} 7. e5 {[%clk 0:03:02]} 7... Ne4 {[%clk 0:03:04.9]} 8. Nxd4 {[%clk
0:03:03.1]} 8... Nxd4 {[%clk 0:03:05.7]} 9. Qxd4 {[%clk 0:03:03.4]} 9... Nc5
{[%clk 0:03:06.8]} 10. Bb3 {[%clk 0:03:04]} 10... Nxb3 {[%clk 0:03:07.6]} 11.
cxb3 {[%clk 0:03:05.9]} 11... O-O {[%clk 0:03:08.2]} 12. Bf4 {[%clk 0:03:07.5]}
12... d6 {[%clk 0:03:08.3]} 13. exd6 {[%clk 0:03:09.4]} 13... cxd6 {[%clk
0:03:09.6]} 14. Nc3 {[%clk 0:03:09.2]} 14... Bf5 {[%clk 0:03:06.3]} 15. Rad1
{[%clk 0:03:09.2]} 15... Bf6 {[%clk 0:03:05]} 16. Qxd6 {[%clk 0:03:09.2]} 16...
Qxd6 {[%clk 0:03:03.7]} 17. Rxd6 {[%clk 0:03:04.5]} 17... b5 {[%clk 0:03:04.1]}
18. b4 {[%clk 0:02:55]} 18... Rfc8 {[%clk 0:02:53.8]} 19. Nd5 {[%clk 0:02:53.9]}
19... Bd8 {[%clk 0:02:46.7]} 20. Rxd8+ {[%clk 0:02:51.6]} 20... Rxd8 {[%clk
0:02:46.5]} 21. Ne7+ {[%clk 0:02:52.6]} 21... Kf8 {[%clk 0:02:47.3]} 22. Nxf5
{[%clk 0:02:54.5]} 22... h6 {[%clk 0:02:44.8]} 23. Bd6+ {[%clk 0:02:52.7]} 23...
Kg8 {[%clk 0:02:44.5]} 24. Bc5 {[%clk 0:02:52.6]} 24... Rd2 {[%clk 0:02:42.5]}
25. g4 {[%clk 0:02:46.1]} 25... Rxb2 {[%clk 0:02:41.3]} 26. Rd1 {[%clk
0:02:46.2]} 26... Rxa2 {[%clk 0:02:38.5]} 27. Rd7 {[%clk 0:02:47.4]} 27... Rc2
{[%clk 0:02:31.2]} 28. Rb7 {[%clk 0:02:39.3]} 28... a5 {[%clk 0:02:27.2]} 29.
Bd4 {[%clk 0:02:39.6]} 29... a4 {[%clk 0:02:16.2]} 30. Bxg7 {[%clk 0:02:37.9]}
30... a3 {[%clk 0:02:16.9]} 31. Bf6 {[%clk 0:02:28.7]} 31... a2 {[%clk
0:02:15.2]} 32. Nxh6+ {[%clk 0:02:29.2]} 32... Kh7 {[%clk 0:02:16.1]} 33. Nxf7
{[%clk 0:02:28.3]} 33... a1=Q+ {[%clk 0:02:15]} 34. Bxa1 {[%clk 0:02:29.8]}
34... Rxa1+ {[%clk 0:02:15.1]} 35. Kg2 {[%clk 0:02:31.3]} 35... Raa2 {[%clk
0:02:07.4]} 36. Ng5+ {[%clk 0:02:32.1]} 36... Kg6 {[%clk 0:02:04.8]} 37. Nh3
{[%clk 0:02:34]} 37... Rc4 {[%clk 0:02:03.2]} 38. Rb6+ {[%clk 0:02:35.2]} 38...
Kg7 {[%clk 0:02:00.6]} 39. Rxb5 {[%clk 0:02:36]} 39... Rxg4+ {[%clk 0:01:56.9]}
40. Kf3 {[%clk 0:02:37.5]} 40... Rh4 {[%clk 0:01:54.9]} 41. Kg3 {[%clk
0:02:35.9]} 41... Rc4 {[%clk 0:01:53.4]} 42. Rb7+ {[%clk 0:02:36.2]} 42... Kf6
{[%clk 0:01:52.3]} 43. Rb6+ {[%clk 0:02:37.5]} 43... Kg7 {[%clk 0:01:52.9]} 44.
Rb7+ {[%clk 0:02:32]} 44... Kf6 {[%clk 0:01:53.5]} 45. b5 {[%clk 0:02:33.3]}
45... Ra3+ {[%clk 0:01:48.5]} 46. f3 {[%clk 0:02:34.4]} 46... Rcc3 {[%clk
0:01:46.1]} 47. Rb6+ {[%clk 0:02:30.3]} 47... Kf5 {[%clk 0:01:46.5]} 48. Ng1
{[%clk 0:02:29.1]} 48... Rc2 {[%clk 0:01:40.9]} 49. Rb8 {[%clk 0:02:27.9]} 49...
Rb2 {[%clk 0:01:38]} 50. b6 {[%clk 0:02:22.8]} 50... Rab3 {[%clk 0:01:39.3]} 51.
Rf8+ {[%clk 0:02:21.8]} 51... Kg6 {[%clk 0:01:39]} 52. Rg8+ {[%clk 0:02:23.1]}
52... Kf7 {[%clk 0:01:39.1]} 53. Rg4 {[%clk 0:02:24.1]} 53... Rxb6 {[%clk
0:01:39.5]} 54. Nh3 {[%clk 0:02:25.2]} 54... Ra6 {[%clk 0:01:34.6]} 55. Ng5+
{[%clk 0:02:26.2]} 55... Kf8 {[%clk 0:01:32.4]} 56. h4 {[%clk 0:02:27.6]} 56...
Raa2 {[%clk 0:01:30.5]} 57. Rc4 {[%clk 0:02:28.4]} 57... Rc2 {[%clk 0:01:29.4]}
58. Rb4 {[%clk 0:02:28.8]} 58... Rab2 {[%clk 0:01:29.7]} 59. Ra4 {[%clk
0:02:30]} 59... Ra2 {[%clk 0:01:30.9]} 60. Rf4+ {[%clk 0:02:31]} 60... Kg8
{[%clk 0:01:30.3]} 61. Kg4 {[%clk 0:02:29.8]} 61... Rg2+ {[%clk 0:01:26.3]} 62.
Kh5 {[%clk 0:02:30.8]} 62... Ra6 {[%clk 0:01:21.9]} 63. Rb4 {[%clk 0:02:29.8]}
63... Rf6 {[%clk 0:01:20.4]} 64. Rb8+ {[%clk 0:02:29.4]} 64... Rf8 {[%clk
0:01:21]} 65. Rb7 {[%clk 0:02:30]} 65... Rf6 {[%clk 0:01:20]} 66. Rb8+ {[%clk
0:02:31.2]} 66... Rf8 {[%clk 0:01:20.6]} 67. Rb6 {[%clk 0:02:32.5]} 67... Rf4
{[%clk 0:01:04.3]} 68. Rg6+ {[%clk 0:02:18.2]} 68... Kh8 {[%clk 0:01:02.5]} 69.
Rd6 {[%clk 0:01:57.4]} 69... Kg8 {[%clk 0:01:01.3]} 70. Rd8+ {[%clk 0:01:56.3]}
70... Rf8 {[%clk 0:01:00.3]} 71. Rd7 {[%clk 0:01:55.4]} 71... Rf6 {[%clk
0:00:58.1]} 72. Re7 {[%clk 0:01:55.6]} 72... Rg3 {[%clk 0:00:51]} 73. Re8+
{[%clk 0:01:53.9]} 73... Rf8 {[%clk 0:00:51.3]} 74. Re6 {[%clk 0:01:54.8]} 74...
Rfxf3 {[%clk 0:00:45.4]} 75. Kg6 {[%clk 0:01:44]} 75... Re3 {[%clk 0:00:38.7]}
76. Rf6 {[%clk 0:01:42.6]} 76... Ref3 {[%clk 0:00:39.5]} 77. Rxf3 {[%clk
0:01:41.8]} 77... Rg1 {[%clk 0:00:39]} 78. Ra3 {[%clk 0:01:41.3]} 78... Rd1
{[%clk 0:00:38.6]} 79. Ra8+ {[%clk 0:01:41.3]} 1-0